fUSD/lending_fUSD_20240906
["ID","MTS","AMOUNT","RATE_DAILY","PERIOD"]
[337289274,1725583851544,-500.0,0.00014589,2]
[337289275,1725583851553,-500.0,0.00014589,2]
[337289276,1725583851563,-500.0,0.00014589,2]
[337289277,1725583851573,-157.52,0.00014589,2]
[337289278,1725583851583,-500.0,0.00014589,2]
[337289279,1725583851593,-500.0,0.00014589,2]
[337289280,1725583851602,-500.0,0.00014589,2]
[337289281,1725583851612,-500.0,0.00014589,2]
[337289282,1725583851621,-500.0,0.00014589,2]
[337289283,1725583851630,-500.0,0.00014589,2]
[337289284,1725583851639,-500.0,0.00014589,2]
[337289285,1725583851650,-500.0,0.00014589,2]
[337289286,1725583851660,-500.0,0.00014589,2]
[337289287,1725583851670,-500.0,0.00014589,2]
[337289288,1725583851681,-500.0,0.00014589,2]
[337289289,1725583851691,-500.0,0.00014589,2]
[337289290,1725583851700,-500.0,0.00014589,2]
[337289291,1725583851710,-500.0,0.00014589,2]
[337289292,1725583851719,-500.0,0.00014589,2]
[337289293,1725583851729,-500.0,0.00014589,2]
[337289294,1725583851780,-500.0,0.00014589,2]
[337289295,1725583851790,-500.0,0.00014589,2]
[337289296,1725583851801,-500.0,0.00014589,2]
[337289297,1725583851810,-500.0,0.00014589,2]
[337289298,1725583851819,-500.0,0.00014589,2]
[337289299,1725583851830,-500.0,0.00014589,2]
[337289300,1725583851840,-500.0,0.00014589,2]
[337289301,1725583851849,-500.0,0.00014589,2]
[337289302,1725583851859,-241.81391992,0.00014589,2]
[337289303,1725583851868,-500.0,0.00014589,2]
[337289304,1725583851878,-618.19503357,0.00014589,2]
[337289305,1725583851887,-500.0,0.00014589,2]
[337289306,1725583851897,-500.0,0.00014589,2]
[337289307,1725583851907,-500.0,0.00014589,2]
[337289308,1725583851916,-500.0,0.00014589,2]
[337289309,1725583851925,-484.45,0.00014589,2]
[337289310,1725583851935,-500.0,0.00014589,2]
[337289311,1725583851944,-533.48056062,0.00014589,2]
[337289312,1725583851953,-174.8635435,0.00014589,2]
[337289313,1725583851962,-515.83480467,0.00014589,2]
[337289314,1725583851971,-500.0,0.00014589,2]
[337289315,1725583851980,-500.0,0.00014589,2]
[337289316,1725583851989,-500.0,0.00014589,2]
[337289317,1725583851998,-500.0,0.00014589,2]
[337289318,1725583852007,-597.68,0.00014589,2]
[337289319,1725583852017,-187.53,0.00014589,2]
[337289320,1725583852027,-500.0,0.00014589,2]
[337289321,1725583852037,-213.11542222,0.00014589,2]
[337289322,1725583852047,-500.0,0.00014589,2]
[337289323,1725583852056,-500.0,0.00014589,2]
[337289324,1725583852066,-452.59,0.00014589,2]
[337289325,1725583852075,-500.0,0.00014589,2]
[337289326,1725583852085,-500.0,0.00014589,2]
[337289327,1725583852094,-500.0,0.00014589,2]
[337289328,1725583852104,-244.69,0.00014589,2]
[337289329,1725583852113,-500.0,0.00014589,2]
[337289330,1725583852123,-197.63787583,0.00014589,2]
[337289331,1725583852134,-500.0,0.00014589,2]
[337289332,1725583852143,-537.33419627,0.00014589,2]
[337289333,1725583852152,-500.0,0.00014589,2]
[337289334,1725583852162,-407.44756157,0.00014589,2]
[337289335,1725583852171,-500.0,0.00014589,2]
[337289336,1725583852180,-636.23,0.00014589,2]
[337289337,1725583852189,-500.0,0.00014589,2]
[337289338,1725583852199,-500.0,0.00014589,2]
[337289339,1725583852208,-500.0,0.00014589,2]
[337289340,1725583852217,-500.0,0.00014589,2]
[337289341,1725583852226,-509.86,0.00014589,2]
[337289342,1725583852235,-500.0,0.00014589,2]
[337289343,1725583852244,-216.1,0.00014589,2]
[337289344,1725583852253,-500.0,0.00014589,2]
[337289345,1725583852263,-202.57,0.00014589,2]
[337289346,1725583852272,-500.0,0.00014589,2]
[337289347,1725583852281,-362.08,0.00014589,2]
[337289348,1725583852290,-500.0,0.00014589,2]
[337289349,1725583852299,-500.0,0.00014589,2]
[337289350,1725583852309,-593.26,0.00014589,2]
[337289351,1725583852318,-500.0,0.00014589,2]
[337289352,1725583852328,-511.4656929,0.00014589,2]
[337289353,1725583852341,-500.0,0.00014589,2]
[337289354,1725583852350,-379.68,0.00014589,2]
[337289355,1725583852359,-500.0,0.00014589,2]
[337289356,1725583852369,-500.0,0.00014589,2]
[337289357,1725583852379,-500.0,0.00014589,2]
[337289358,1725583852390,-534.04,0.00014589,2]
[337289359,1725583852399,-504.77757162,0.00014589,2]
[337289360,1725583852409,-500.0,0.00014589,2]
[337289361,1725583852419,-500.0,0.00014589,2]
[337289362,1725583852429,-500.0,0.00014589,2]
[337289363,1725583852438,-151.28,0.00014589,2]
[337289364,1725583852448,-500.0,0.00014589,2]
[337289365,1725583852457,-500.0,0.00014589,2]
[337289366,1725583852468,-289.65289979,0.00014589,2]
[337289367,1725583852478,-500.0,0.00014589,2]
[337289368,1725583852488,-500.0,0.00014589,2]
[337289369,1725583852499,-500.0,0.00014589,2]
[337289370,1725583852509,-500.0,0.00014589,2]
[337289371,1725583852519,-500.0,0.00014589,2]
[337289372,1725583852528,-500.0,0.00014589,2]
[337289373,1725583852539,-500.0,0.00014589,2]
[337289374,1725583852549,-500.0,0.00014589,2]
[337289375,1725583852559,-560.73552223,0.00014589,2]
[337289376,1725583852569,-500.0,0.00014589,2]
[337289377,1725583852580,-500.0,0.00014589,2]
[337289378,1725583852590,-399.29596942,0.00014589,2]
[337289379,1725583852599,-500.0,0.00014589,2]
[337289380,1725583852608,-500.0,0.00014589,2]
[337289381,1725583852617,-500.0,0.00014589,2]
[337289382,1725583852626,-416.72,0.00014589,2]
[337289383,1725583852636,-500.0,0.00014589,2]
[337289384,1725583852646,-500.0,0.00014589,2]
[337289385,1725583852663,-500.0,0.00014589,2]
[337289386,1725583852673,-500.0,0.00014589,2]
[337289387,1725583852682,-500.0,0.00014589,2]
[337289388,1725583852691,-500.0,0.00014589,2]
[337289389,1725583852700,-500.0,0.00014589,2]
[337289390,1725583852709,-200.56,0.00014589,2]
[337289391,1725583852718,-500.0,0.00014589,2]
[337289392,1725583852727,-384.73,0.00014589,2]
[337289393,1725583852737,-503.32170107,0.00014589,2]
[337289394,1725583852746,-500.0,0.00014589,2]
[337289395,1725583852755,-500.0,0.00014589,2]
[337289396,1725583852765,-574.0,0.0001459,2]
[337289397,1725583852774,-220.880281,0.00014593,2]
[337289398,1725583852782,-3663.2406724,0.00014593,2]
[337289399,1725583852792,-201.54,0.00014595,2]
[337289400,1725583852802,-597.94,0.00014597,2]
[337289401,1725583852811,-500.0,0.00014597,2]
[337289402,1725583852821,-500.0,0.00014597,2]
[337289403,1725583852830,-500.0,0.00014597,2]
[337289404,1725583852839,-426.36,0.00014597,2]
[337289405,1725583852848,-500.0,0.00014597,2]
[337289406,1725583852858,-500.0,0.00014597,2]
[337289407,1725583852867,-500.0,0.00014597,2]
[337289408,1725583852879,-281.51584225,0.00014597,2]
[337289409,1725583852889,-500.0,0.00014598,2]
[337289410,1725583852898,-500.0,0.00014598,2]
[337289411,1725583852908,-500.0,0.00014598,2]
[337289412,1725583852918,-500.0,0.00014598,2]
[337289413,1725583852927,-500.0,0.00014598,2]
[337289414,1725583852936,-500.0,0.00014598,2]
[337289415,1725583852946,-605.65607542,0.00014598,2]
[337289416,1725583852955,-500.0,0.00014598,2]
[337289417,1725583852965,-517.95,0.00014598,2]
[337289418,1725583852975,-500.0,0.00014598,2]
[337289419,1725583852984,-500.0,0.00014598,2]
[337289420,1725583852993,-500.0,0.00014598,2]
[337289421,1725583853003,-424.9,0.00014598,2]
[337289422,1725583853013,-624.48,0.00014598,2]
[337289423,1725583853022,-500.0,0.00014598,2]
[337289424,1725583853032,-189.72,0.00014598,2]
[337289425,1725583853042,-592.12,0.00014598,2]
[337289426,1725583853052,-156.16,0.00014598,2]
[337289427,1725583853062,-500.0,0.00014598,2]
[337289428,1725583853072,-500.0,0.00014598,2]
[337289429,1725583853083,-158.94,0.00014598,2]
[337289430,1725583853093,-500.0,0.00014598,2]
[337289431,1725583853104,-500.0,0.00014598,2]
[337289432,1725583853116,-349.84,0.00014598,2]
[337289433,1725583853125,-367.15876814,0.00014598,2]
[337289434,1725583853134,-500.0,0.00014598,2]
[337289435,1725583853143,-500.0,0.00014598,2]
[337289436,1725583853152,-623.04096922,0.00014598,2]
[337289437,1725583853161,-500.0,0.00014598,2]
[337289438,1725583853170,-245.9,0.00014598,2]
[337289439,1725583853179,-333.48,0.00014598,2]
[337289440,1725583853188,-500.0,0.00014598,2]
[337289441,1725583853197,-612.62227555,0.00014598,2]
[337289442,1725583853206,-395.76,0.00014598,2]
[337289443,1725583853216,-156.48211472,0.00014598,2]
[337289444,1725583853225,-500.0,0.00014598,2]
[337289445,1725583853234,-500.0,0.00014598,2]
[337289446,1725583853244,-500.0,0.00014598,2]
[337289447,1725583853253,-383.82,0.00014598,2]
[337289448,1725583853262,-338.64,0.00014598,2]
[337289449,1725583853271,-500.0,0.00014598,2]
[337289450,1725583853280,-643.52,0.00014598,2]
[337289451,1725583853289,-500.0,0.00014598,2]
[337289452,1725583853298,-500.0,0.00014598,2]
[337289453,1725583853307,-310.04,0.00014598,2]
[337289454,1725583853316,-500.0,0.00014598,2]
[337289455,1725583853325,-500.0,0.00014598,2]
[337289456,1725583853337,-500.0,0.00014598,2]
[337289457,1725583853346,-500.0,0.00014598,2]
[337289458,1725583853355,-500.0,0.00014598,2]
[337289459,1725583853364,-500.0,0.00014598,2]
[337289460,1725583853373,-500.0,0.00014598,2]
[337289461,1725583853382,-500.0,0.00014598,2]
[337289462,1725583853391,-500.0,0.00014598,2]
[337289463,1725583853400,-500.0,0.00014598,2]
[337289464,1725583853411,-197.74,0.00014598,2]
[337289465,1725583853420,-500.0,0.00014598,2]
[337289466,1725583853429,-500.0,0.00014598,2]
[337289467,1725583853439,-500.0,0.00014598,2]
[337289468,1725583853448,-294.66,0.00014598,2]
[337289469,1725583853457,-634.46,0.00014598,2]
[337289470,1725583853466,-579.44,0.00014598,2]
[337289471,1725583853475,-41666.66,0.00014598,2]
[337289472,1725583853484,-41666.66,0.00014598,2]
[337289473,1725583853494,-41666.66,0.00014598,2]
[337289474,1725583853503,-41666.66,0.00014598,2]
[337289475,1725583853512,-207.12,0.00014598,2]
[337289476,1725583853521,-500.0,0.00014599,2]
[337289477,1725583853530,-301.6,0.00014599,2]
[337289478,1725583853539,-590.16,0.00014599,2]
[337289479,1725583853548,-186.2,0.00014599,2]
[337289480,1725583853557,-500.0,0.00014599,2]
[337289481,1725583853566,-603.28,0.00014599,2]
[337289482,1725583853575,-228.16,0.00014599,2]
[337289483,1725583853584,-500.0,0.00014599,2]
[337289484,1725583853594,-342.02,0.00014599,2]
[337289485,1725583853602,-500.0,0.00014599,2]
[337289486,1725583853611,-644.48,0.00014599,2]
[337289487,1725583853620,-204.94,0.00014599,2]
[337289488,1725583853629,-452.82,0.00014599,2]
[337289489,1725583853638,-573.2,0.00014599,2]
[337289490,1725583853649,-297.93,0.00014599,2]
[337289491,1725583853659,-500.0,0.00014599,2]
[337289492,1725583853668,-500.0,0.00014599,2]
[337289493,1725583853677,-179.83327282,0.00014599,2]
[337289494,1725583853687,-416.86566797,0.00014599,2]
[337289495,1725583853697,-379.98949793,0.00014599,2]
[337289496,1725583853709,-500.0,0.00014599,2]
[337289497,1725583853718,-500.0,0.00014599,2]
[337289498,1725583853728,-355.94509938,0.00014599,2]
[337289499,1725583853738,-500.0,0.00014599,2]
[337289500,1725583853749,-283.08,0.00014599,2]
[337289501,1725583853759,-352.42,0.00014599,2]
[337289502,1725583853769,-500.0,0.00014599,2]
[337289503,1725583853779,-235.82,0.00014599,2]
[337289504,1725583853789,-182.85303363,0.00014599,2]
[337289505,1725583853799,-500.0,0.00014599,2]
[337289506,1725583853809,-558.63824552,0.00014599,2]
[337289507,1725583853818,-500.0,0.00014599,2]
[337289508,1725583853828,-500.0,0.00014599,2]
[337289509,1725583853837,-500.0,0.00014599,2]
[337289510,1725583853847,-617.53,0.00014599,2]
[337289511,1725583853856,-500.0,0.00014599,2]
[337289512,1725583853865,-158.30216847,0.00014599,2]
[337289513,1725583853874,-500.0,0.00014599,2]
[337289514,1725583853883,-119.37895813,0.00014599,2]
[337289515,1725583853901,-380.62104187,0.00014599,2]
[337289516,1725583853915,-282.2462785,0.00014599,2]
[337289517,1725583853925,-500.0,0.00014599,2]
[337289518,1725583853934,-500.0,0.00014599,2]
[337289519,1725583853943,-500.0,0.00014599,2]
[337289520,1725583853953,-500.0,0.00014599,2]
[337289521,1725583853962,-313.0,0.00014599,2]
[337289522,1725583853971,-500.0,0.00014599,2]
[337289523,1725583853980,-500.0,0.00014599,2]
[337289524,1725583853990,-382.83,0.00014599,2]
[337289525,1725583853999,-500.0,0.00014599,2]
[337289526,1725583854009,-644.34,0.00014599,2]
[337289527,1725583854019,-500.0,0.00014599,2]
[337289528,1725583854028,-500.0,0.00014599,2]
[337289529,1725583854038,-500.0,0.00014599,2]
[337289530,1725583854048,-5347.28049228,0.00014599,2]
[337289531,1725583854060,-417.47216,0.00014599,2]
[337289532,1725583894156,155.06,0.00011628,2]
[337289539,1725584555299,750.0,0.00011,2]
[337289540,1725584556407,800.0,0.00013,2]
[337289541,1725584605743,500.0,0.000257,120]
[337289542,1725584623506,155.06,0.00011328,2]
[337289575,1725585031869,-236.33,0.00013221,2]
[337289578,1725585031879,-26.38588572,0.00013223,2]
[337289582,1725585031889,-389.61411428,0.00013223,2]
[337289584,1725585031900,-157.38695884,0.00013233,2]
[337289593,1725585032008,-33.62304116,0.00013233,2]
[337289594,1725585032017,-250.0,0.00013254,2]
[337289595,1725585032027,-208.99,0.00013281,2]
[337289596,1725585032036,-584.0,0.00013291,2]
[337289597,1725585032046,-192.79,0.0001347,2]
[337289598,1725585032056,-192.79,0.00013474,2]
[337289599,1725585032066,-192.79,0.00013477,2]
[337289600,1725585032075,-192.79,0.00013481,2]
[337289601,1725585032085,-192.79,0.00013484,2]
[337289602,1725585032094,-150.99,0.00013484,2]
[337289603,1725585032103,-300.0,0.00013487,2]
[337289604,1725585032113,-192.79,0.00013488,2]
[337289605,1725585032122,-198.87042227,0.00013488,2]
[337289606,1725585032133,-655.60712406,0.00013488,2]
[337289607,1725585032144,-3834.18185265,0.00013488,2]
[337289608,1725585032155,-440.46604856,0.00013488,2]
[337289609,1725585032178,-2643.26455246,0.00013488,2]
[337289610,1725585032188,-192.79,0.00013492,2]
[337289611,1725585032198,-192.79,0.00013495,2]
[337289612,1725585032207,-192.79,0.00013499,2]
[337289613,1725585032217,-192.79,0.00013502,2]
[337289614,1725585032227,-192.79,0.00013506,2]
[337289616,1725585032237,-192.79,0.00013509,2]
[337289617,1725585032247,-192.79,0.00013513,2]
[337289618,1725585032257,-192.79,0.00013516,2]
[337289619,1725585032265,-192.79,0.0001352,2]
[337289621,1725585032275,-192.79,0.00013523,2]
[337289622,1725585032285,-192.79,0.00013527,2]
[337289623,1725585032295,-150.0,0.0001353,2]
[337289624,1725585032305,-192.79,0.0001353,2]
[337289625,1725585032315,-192.79,0.00013534,2]
[337289626,1725585032324,-192.79,0.00013537,2]
[337289627,1725585032334,-1308.69,0.00013699,2]
[337289628,1725585032344,-2106.27,0.00013699,2]
[337289629,1725585032354,-150.0,0.00014321,2]
[337289630,1725585032364,-150.0,0.0001433,2]
[337289631,1725585032373,-150.0,0.00014331,2]
[337289632,1725585032382,-773.25077334,0.00014332,2]
[337289633,1725585032595,-340.28165674,0.00014332,2]
[337289634,1725585038169,-386.46756992,0.00014332,2]
[337289635,1725585038179,-150.0,0.00014338,2]
[337289636,1725585038188,-150.0,0.00014341,2]
[337289637,1725585038199,-150.0,0.00014344,2]
[337289638,1725585038208,-150.0,0.00014346,2]
[337289639,1725585038219,-150.0,0.00014346,2]
[337289640,1725585038228,-1500.0,0.00014347,2]
[337289641,1725585038238,-1500.0,0.00014355,2]
[337289642,1725585038247,-150.0,0.00014356,2]
[337289643,1725585038257,-150.0,0.00014359,2]
[337289644,1725585038266,-150.0,0.00014362,2]
[337289645,1725585038276,-150.0,0.00014372,2]
[337289646,1725585038286,-12162.9984,0.00014376,2]
[337289647,1725585038295,-150.0,0.00014379,2]
[337289648,1725585038305,-150.0,0.00014382,2]
[337289649,1725585038315,-167.43512377,0.00014382,2]
[337289650,1725585038324,-347.40048669,0.00014387,2]
[337289651,1725585038333,-16190.46267022,0.00014388,2]
[337289652,1725585038343,-150.0,0.00014388,2]
[337289653,1725585038354,-1500.0,0.0001439,2]
[337289654,1725585038363,-150.0,0.00014391,2]
[337289655,1725585038373,-155.06,0.000144,2]
[337289657,1725585038382,-1500.0,0.00014406,2]
[337289659,1725585038392,-150.0,0.00014408,2]
[337289660,1725585038401,-817.9429019,0.00014414,2]
[337289661,1725585038410,-150.0,0.00014417,2]
[337289662,1725585038419,-641.77728648,0.00014418,2]
[337289663,1725585038429,-150.0,0.00014419,2]
[337289664,1725585038439,-150.0,0.00014425,2]
[337289665,1725585038448,-150.0,0.00014427,2]
[337289666,1725585038458,-13459.0,0.00014436,2]
[337289667,1725585038468,-626.47,0.00014436,2]
[337289668,1725585038477,-150.0,0.00014436,2]
[337289669,1725585038486,-1145.0,0.00014436,2]
[337289670,1725585038496,-319.079,0.00014436,2]
[337289671,1725585038506,-1500.0,0.00014436,2]
[337289672,1725585038515,-150.0,0.00014437,2]
[337289673,1725585038525,-150.0,0.00014439,2]
[337289674,1725585038534,-150.0,0.00014439,2]
[337289675,1725585038544,-150.0,0.00014441,2]
[337289676,1725585038553,-1500.0,0.00014453,2]
[337289677,1725585038562,-150.0,0.00014454,2]
[337289678,1725585038571,-150.0,0.00014454,2]
[337289679,1725585038581,-1105.59905308,0.00014455,2]
[337289680,1725585038591,-6135.35461983,0.0001446,2]
[337289681,1725585038602,-150.0,0.00014461,2]
[337289682,1725585038611,-150.0,0.00014463,2]
[337289683,1725585038620,-162.37254428,0.00014465,2]
[337289684,1725585038630,-334.54604155,0.00014465,2]
[337289685,1725585038639,-910.5229,0.00014466,2]
[337289686,1725585038649,-7722.0938,0.00014466,2]
[337289687,1725585038658,-438.1356,0.00014476,2]
[337289688,1725585038669,-150.0,0.00014478,2]
[337289689,1725585038679,-150.0,0.00014479,2]
[337289690,1725585038688,-150.0,0.00014479,2]
[337289691,1725585038698,-365.2039,0.00014489,2]
[337289692,1725585038708,-150.0,0.00014492,2]
[337289693,1725585038717,-150.0,0.00014496,2]
[337289694,1725585038728,-47701.6317,0.00014499,2]
[337289695,1725585038739,-150.0,0.000145,2]
[337289696,1725585038748,-1105.59905302,0.00014504,2]
[337289697,1725585038758,-700.0,0.00014514,3]
[337289698,1725585038768,-150.0,0.00014517,2]
[337289699,1725585038778,-150.0,0.00014525,2]
[337289700,1725585038787,-1500.0,0.00014526,2]
[337289701,1725585038797,-150.0,0.0001454,2]
[337289702,1725585038808,-1105.59905302,0.00014554,2]
[337289703,1725585038817,-150.0,0.00014554,2]
[337289704,1725585038827,-38140.5012552,0.00014555,3]
[337289705,1725585038836,-152.19,0.00014555,2]
[337289706,1725585038845,-500.0,0.00014555,2]
[337289707,1725585038854,-500.0,0.00014555,2]
[337289708,1725585038863,-500.0,0.00014555,2]
[337289709,1725585038872,-500.0,0.00014555,2]
[337289710,1725585038882,-500.0,0.00014555,2]
[337289711,1725585038890,-500.0,0.00014555,2]
[337289712,1725585038901,-500.0,0.00014555,2]
[337289713,1725585038910,-500.0,0.00014555,2]
[337289714,1725585038919,-500.0,0.00014555,2]
[337289715,1725585038928,-20000.0,0.00014555,2]
[337289716,1725585038937,-500.0,0.00014555,2]
[337289717,1725585038946,-164.025,0.00014555,2]
[337289718,1725585038955,-500.0,0.00014555,2]
[337289719,1725585038964,-500.0,0.00014555,2]
[337289720,1725585038973,-286.2462404,0.00014555,2]
[337289721,1725585038982,-508.83100595,0.00014555,2]
[337289722,1725585038991,-500.0,0.00014555,2]
[337289723,1725585039000,-500.0,0.00014555,2]
[337289724,1725585039010,-488.81540689,0.00014555,2]
[337289725,1725585039019,-500.0,0.00014555,2]
[337289726,1725585039028,-500.0,0.00014555,2]
[337289727,1725585039037,-500.0,0.00014555,2]
[337289728,1725585039046,-500.0,0.00014555,2]
[337289729,1725585039055,-9664.94840585,0.00014556,3]
[337289730,1725585039064,-77319.5872468,0.00014556,3]
[337289731,1725585039073,-28994.8452175,0.00014557,3]
[337289732,1725585039083,-500.0,0.00014557,2]
[337289733,1725585039092,-500.0,0.00014557,2]
[337289734,1725585039101,-500.0,0.00014557,2]
[337289735,1725585039110,-500.0,0.00014557,2]
[337289736,1725585039119,-500.0,0.00014557,2]
[337289737,1725585039128,-500.0,0.00014557,2]
[337289738,1725585039137,-500.0,0.00014557,2]
[337289739,1725585039146,-500.0,0.00014557,2]
[337289740,1725585039156,-500.0,0.00014557,2]
[337289741,1725585039165,-500.0,0.00014557,2]
[337289742,1725585039174,-500.0,0.00014557,2]
[337289743,1725585039183,-500.0,0.00014557,2]
[337289744,1725585039193,-500.0,0.00014557,2]
[337289745,1725585039202,-500.0,0.00014557,2]
[337289746,1725585039212,-500.0,0.00014557,2]
[337289747,1725585039221,-500.0,0.00014557,2]
[337289748,1725585039231,-500.0,0.00014557,2]
[337289749,1725585039240,-500.0,0.00014557,2]
[337289750,1725585039249,-500.0,0.00014557,2]
[337289751,1725585039258,-500.0,0.00014557,2]
[337289752,1725585039267,-500.0,0.00014557,2]
[337289753,1725585039276,-500.0,0.00014557,2]
[337289754,1725585039286,-447.28798635,0.00014557,2]
[337289755,1725585039294,-500.0,0.00014557,2]
[337289756,1725585039304,-500.0,0.00014557,2]
[337289757,1725585039313,-590.86811532,0.00014557,2]
[337289758,1725585039322,-500.0,0.00014557,2]
[337289759,1725585039332,-500.0,0.00014557,2]
[337289760,1725585039342,-500.0,0.00014557,2]
[337289761,1725585039352,-500.0,0.00014557,2]
[337289762,1725585039361,-500.0,0.00014557,2]
[337289763,1725585039371,-500.0,0.00014557,2]
[337289764,1725585039380,-19329.8968117,0.00014558,3]
[337289765,1725585039390,-500.0,0.00014558,2]
[337289766,1725585039399,-500.0,0.00014558,2]
[337289767,1725585039407,-500.0,0.00014558,2]
[337289768,1725585039417,-500.0,0.00014558,2]
[337289769,1725585039427,-500.0,0.00014558,2]
[337289770,1725585039436,-500.0,0.00014558,2]
[337289771,1725585039445,-500.0,0.00014558,2]
[337289772,1725585039454,-500.0,0.00014558,2]
[337289773,1725585039463,-500.0,0.00014558,2]
[337289774,1725585039472,-19329.8968117,0.00014558,3]
[337289775,1725585039481,-9664.94840585,0.00014563,3]
[337289776,1725585039490,-500.0,0.00014564,2]
[337289777,1725585039499,-500.0,0.00014564,2]
[337289778,1725585039508,-500.0,0.00014564,2]
[337289779,1725585039517,-500.0,0.00014564,2]
[337289780,1725585039526,-500.0,0.00014564,2]
[337289781,1725585039535,-500.0,0.00014564,2]
[337289782,1725585039546,-500.0,0.00014564,2]
[337289783,1725585039555,-500.0,0.00014564,2]
[337289784,1725585039564,-500.0,0.00014564,2]
[337289785,1725585039574,-500.0,0.00014564,2]
[337289786,1725585039583,-500.0,0.00014564,2]
[337289787,1725585039592,-27537.58,0.00014564,2]
[337289788,1725585039603,-500.0,0.00014564,2]
[337289789,1725585039612,-500.0,0.00014564,2]
[337289790,1725585039621,-500.0,0.00014564,2]
[337289791,1725585039630,-500.0,0.00014564,2]
[337289792,1725585039639,-500.0,0.00014564,2]
[337289793,1725585039648,-500.0,0.00014564,2]
[337289794,1725585039657,-500.0,0.00014564,2]
[337289795,1725585039666,-500.0,0.00014564,2]
[337289796,1725585039675,-500.0,0.00014564,2]
[337289797,1725585039684,-500.0,0.00014564,2]
[337289798,1725585039693,-500.0,0.00014564,2]
[337289799,1725585039702,-500.0,0.00014564,2]
[337289800,1725585039712,-500.0,0.00014564,2]
[337289801,1725585039722,-500.0,0.00014564,2]
[337289802,1725585039735,-20000.0,0.00014564,2]
[337289803,1725585039743,-500.0,0.00014564,2]
[337289804,1725585039752,-500.0,0.00014565,2]
[337289805,1725585039761,-500.0,0.00014565,2]
[337289806,1725585039771,-500.0,0.00014565,2]
[337289807,1725585039780,-500.0,0.00014565,2]
[337289808,1725585039789,-500.0,0.00014565,2]
[337289809,1725585039798,-500.0,0.00014565,2]
[337289810,1725585039809,-500.0,0.00014565,2]
[337289811,1725585039819,-500.0,0.00014565,2]
[337289812,1725585039829,-500.0,0.00014565,2]
[337289813,1725585039838,-500.0,0.00014565,2]
[337289815,1725585039848,-500.0,0.00014565,2]
[337289817,1725585039857,-534.9,0.00014565,2]
[337289819,1725585039867,-500.0,0.00014565,2]
[337289821,1725585039877,-500.0,0.00014565,2]
[337289823,1725585039886,-500.0,0.00014565,2]
[337289825,1725585039895,-500.0,0.00014565,2]
[337289827,1725585039904,-154.53756471,0.00014565,2]
[337289829,1725585039914,-500.0,0.00014565,2]
[337289831,1725585039923,-500.0,0.00014565,2]
[337289833,1725585039932,-500.0,0.00014565,2]
[337289834,1725585039942,-500.0,0.00014565,2]
[337289835,1725585039952,-500.0,0.00014565,2]
[337289836,1725585039963,-500.0,0.00014565,2]
[337289837,1725585039972,-575.14448955,0.00014565,2]
[337289838,1725585039980,-500.0,0.00014565,2]
[337289839,1725585039990,-500.0,0.00014565,2]